bitfinex/quotes_SOLUSD_20260117
["timestamp","ask_amount","ask_price","bid_price","bid_amount"]
[1768672582153,2.0764915,143.93,143.91,2.52752223]
[1768672582354,2.0764915,143.93,143.91,2.46752223]
[1768672582776,9.71687814,143.94,143.91,2.46752223]
[1768672586201,11.79336964,143.94,143.91,2.46752223]
[1768672588073,9.71687814,143.94,143.91,2.46752223]
[1768672595595,9.71687814,143.94,143.91,2.40752223]
[1768672603508,2.82195025,143.92,143.89,9.63540667]
[1768672603717,2.82195025,143.92,143.89,2.68569166]
[1768672607218,9.77028,143.92,143.89,2.68569166]
[1768672608532,2.82195025,143.92,143.89,9.63536755]
[1768672609316,2.82195025,143.92,143.9,2.68569166]
[1768672615957,4.87841031,143.94,143.9,2.68569166]
[1768672616128,9.74940031,143.94,143.91,2.85787539]
[1768672616446,24.96894951,143.95,143.91,2.85787539]
[1768672616618,24.96894951,143.95,143.91,4.93436689]
[1768672616934,24.96894951,143.95,143.91,2.85787539]
[1768672619047,24.96894951,143.95,143.91,9.80658662]
[1768672619745,25.52073879,143.99,143.92,2.85787539]
[1768672619920,25.2985279,143.98,143.94,2.85787539]
[1768672620122,20.09841031,143.98,143.94,2.79787539]
[1768672620329,18.02191881,143.98,143.94,2.79787539]
[1768672620532,20.09841031,143.98,143.94,2.79787539]
[1768672620952,24.96732789,143.98,143.94,6.94724184]
[1768672621158,9.74732789,143.98,143.94,9.02373334]
[1768672621452,24.96732789,143.98,143.94,9.02373334]
[1768672621633,24.96732789,143.98,143.94,6.94724184]
[1768672622133,24.96732789,143.98,143.94,9.80511723]
[1768672622336,2.80191881,143.97,143.94,9.80511723]
[1768672624058,2.80191881,143.97,143.94,11.88160873]
[1768672624237,2.80191881,143.97,143.94,9.80511723]
[1768672625752,2.80191881,143.97,143.94,11.88160873]
[1768672626253,24.96732789,143.98,143.95,2.85787539]
[1768672626748,15.22,143.98,143.96,2.85787539]
[1768672627231,9.7470008,143.99,143.96,2.85787539]
[1768672627429,24.9670008,143.99,143.96,2.85787539]
[1768672627629,2.80191881,143.98,143.96,2.85787539]
[1768672640551,24.9670008,143.99,143.96,2.85787539]
[1768672641356,2.80191881,143.98,143.95,11.87989191]
[1768672641750,2.80191881,143.98,143.95,11.6658184]
[1768672641957,2.80191881,143.98,143.96,2.64380188]
[1768672642257,24.92100564,143.99,143.96,2.64380188]
[1768672647557,9.70100564,143.99,143.96,2.64380188]
[1768672647763,24.92100564,143.99,143.96,2.64380188]
[1768672650468,2.75592365,143.98,143.96,2.64380188]
[1768672651441,15.22,143.99,143.96,9.58990879]
[1768672652052,17.97592365,143.99,143.96,9.58990879]
[1768672653875,17.97592365,143.99,143.97,2.74396789]
[1768672654072,9.93793554,144.01,143.98,2.74396789]
[1768672654407,25.15793554,144.01,143.98,2.74396789]
[1768672654559,15.42,144.01,143.99,2.74396789]
[1768672654949,0.2,144.01,143.99,2.74396789]
[1768672659479,0.2,144.01,144.0,2.74396789]
[1768672661560,0.2,144.01,143.99,6.94484869]
[1768672661760,0.2,144.01,143.99,9.68881658]
[1768672663257,0.2,144.01,143.99,2.74396789]
[1768672673168,9.73743594,144.02,143.99,2.74396789]
[1768672681001,6.94351021,144.02,144.0,2.8530999]
[1768672682584,9.6580329,144.02,144.0,2.8530999]
[1768672682988,6.94351021,144.02,144.0,2.8530999]
[1768672685899,9.6580329,144.02,144.0,2.8530999]
[1768672695208,6.94351021,144.02,144.0,2.8530999]
[1768672699098,9.6580329,144.02,144.0,2.8530999]
[1768672699422,9.6580329,144.02,143.99,2.8530999]
[1768672710626,6.94351021,144.02,143.99,2.8530999]
[1768672712706,8.80160296,144.02,143.99,2.8530999]
[1768672720031,8.77160297,144.02,143.99,2.8530999]
[1768672720534,1.85265398,144.01,143.98,2.78308488]
[1768672720719,1.82265399,144.01,143.97,11.80281525]
[1768672720920,1.82265399,144.01,143.97,9.72878459]
[1768672721432,2.07403066,144.01,143.97,2.78308488]
[1768672722316,24.2722104,144.02,143.97,2.78308488]
[1768672722514,22.11351022,144.02,143.98,2.78308488]
[1768672722835,23.93370087,144.02,143.98,2.78308488]
[1768672723232,1.82019065,144.01,143.98,2.78308488]
[1768672723738,8.7641787,144.01,143.98,2.78308488]
[1768672731057,6.90827752,144.01,143.98,2.78308488]
[1768672733354,2.07403066,144.0,143.97,2.71950469]
[1768672733521,2.07403066,144.0,143.96,2.71950469]
[1768672734145,2.04403067,144.0,143.96,2.71950469]
[1768672734445,6.94492673,143.99,143.96,2.71950469]
[1768672736045,8.98863431,144.0,143.96,9.66580918]
[1768672736344,6.94460364,144.0,143.97,2.71950469]
[1768672736647,2.07403066,144.01,143.97,2.71950469]
[1768672736648,6.94396222,144.01,143.97,2.71950469]
[1768672740457,9.01799288,144.01,143.97,2.71950469]
[1768672741660,6.94396222,144.01,143.98,2.71950469]
[1768672742157,22.14368787,144.02,143.98,2.71950469]
[1768672743246,22.14368787,144.02,143.99,2.71950469]
[1768672743564,22.16585809,144.02,143.99,2.71950469]
[1768672744766,22.14368787,144.02,143.99,2.71950469]
[1768672745967,15.2,144.02,144.0,2.71950469]
[1768672747171,22.14351275,144.02,144.0,2.71950469]
[1768672748467,6.94351275,144.02,144.0,2.71950469]
[1768672749654,0.2,144.04,144.02,2.71950469]
[1768672750048,0.2,144.04,144.03,2.71950469]
[1768672754775,7.14256426,144.04,144.01,2.71950469]
[1768672754951,7.4111506,144.04,144.01,2.71950469]
[1768672759271,7.4111506,144.04,144.0,2.71950469]
[1768672769084,7.4111506,144.04,144.01,2.94043779]
[1768672778486,7.14256426,144.04,144.01,2.94043779]
[1768672781786,0.2,144.04,144.02,2.86909059]
[1768672782192,0.2,144.04,144.03,2.86909059]
[1768672796503,6.94214354,144.05,144.03,2.86909059]
[1768672800404,0.1,144.09,144.04,2.72138245]
[1768672800699,2.87928598,144.09,144.05,2.72138245]
[1768672801000,0.1,144.09,144.07,2.72138245]
[1768672801377,2.87928598,144.09,144.07,2.72138245]
[1768672801578,2.87928598,144.09,144.06,4.79511535]
[1768672801978,2.87928598,144.09,144.07,2.0737329]
[1768672802197,2.87928598,144.09,144.06,4.79511535]
[1768672802599,9.81940369,144.09,144.06,4.79511535]
[1768672803992,2.77928598,144.08,144.06,2.0737329]
[1768672804399,9.81940369,144.09,144.06,4.79511535]
[1768672805414,0.1,144.09,144.08,2.72138245]
[1768672806026,0.1,144.09,144.07,2.72138245]
[1768672806901,2.77928598,144.08,144.05,4.79511535]
[1768672807299,9.71989744,144.08,144.05,4.79511535]
[1768672807815,9.71989744,144.08,144.05,2.72138245]
[1768672808724,2.77928598,144.07,144.04,4.79511535]
[1768672809619,2.77928598,144.07,144.04,2.72138245]
[1768672809920,2.77928598,144.07,144.04,11.73762894]
[1768672810283,9.71989744,144.08,144.05,2.72138245]
[1768672816814,6.94061146,144.08,144.05,2.72138245]
[1768672818485,6.94061146,144.08,144.05,4.79511535]
[1768672819311,6.94061146,144.08,144.05,4.79353239]
[1768672820412,2.87928598,144.09,144.05,4.79353239]
[1768672820915,2.87928598,144.09,144.05,2.72138245]
[1768672821593,6.94092441,144.08,144.05,2.72138245]
[1768672827124,9.91412533,144.08,144.05,2.72138245]
[1768672847649,2.86870687,144.07,144.03,2.90775436]
[1768672847942,2.86870687,144.07,144.01,6.94368706]
[1768672847943,2.86870687,144.05,144.01,9.85144142]
[1768672848148,2.86870687,144.05,144.02,2.90775436]
[1768672850328,9.81081716,144.05,144.02,2.90775436]
[1768672851246,2.86870687,144.04,144.01,2.90775436]
[1768672851445,2.86870687,144.02,143.99,2.90775436]
[1768672851866,4.94085681,144.03,143.99,2.90775436]
[1768672852150,2.86870687,144.03,143.99,2.07214994]
[1768672852355,2.86870687,144.03,144.0,3.2109487]
[1768672852531,9.81192067,144.03,144.0,3.2109487]
[1768672855055,9.78192065,144.03,144.0,3.2109487]
[1768672860165,10.00940891,144.04,144.01,3.2109487]
[1768672860343,12.08155885,144.04,144.01,3.2109487]
[1768672863064,6.94269437,144.04,144.01,3.2109487]
[1768672864166,27.28105102,144.05,144.02,3.2109487]
[1768672864767,22.14218654,144.05,144.02,3.2109487]
[1768672864938,6.94218654,144.05,144.02,3.2109487]
[1768672865139,6.94123867,144.07,144.04,3.2109487]
[1768672866470,10.00795321,144.07,144.04,3.2109487]
[1768672867157,3.06671454,144.06,144.03,3.2109487]
[1768672867766,12.08010315,144.07,144.03,3.2109487]
[1768672871073,10.00795321,144.07,144.03,3.2109487]
[1768672873057,12.08010315,144.07,144.03,3.2109487]
[1768672874877,10.00795321,144.07,144.03,3.2109487]
[1768672875376,12.08010315,144.07,144.03,3.2109487]
[1768672876171,10.00795321,144.07,144.03,3.2109487]
[1768672876474,12.08010315,144.07,144.03,3.2109487]
[1768672881476,12.08090562,144.07,144.03,3.2109487]
[1768672882575,3.12872157,144.06,144.03,3.2109487]
[1768672883276,29.49558843,144.07,144.03,3.2109487]
[1768672889182,3.12872157,144.05,144.02,2.99330317]
[1768672890673,10.07084382,144.05,144.02,2.99330317]
[1768672899694,10.07084382,144.05,144.02,5.06625558]
[1768672899872,10.07084382,144.05,144.02,2.99330317]
[1768672905498,12.14379623,144.05,144.02,2.99330317]
[1768672906187,10.07084382,144.05,144.02,2.99330317]
[1768672906390,3.14014634,144.02,143.99,3.30276392]
[1768672906699,5.21309875,144.01,143.97,3.30276392]
[1768672906890,2.07295241,144.0,143.97,3.30276392]
[1768672907403,5.21309875,144.01,143.97,10.24863948]
[1768672907783,5.21309875,144.01,143.98,3.30276392]
[1768672908805,3.14014634,143.98,143.93,3.30276392]
[1768672908985,3.14014634,143.97,143.93,3.30276392]
[1768672909382,5.21309875,143.97,143.93,3.30276392]
[1768672910008,3.14014634,143.97,143.94,3.30276392]
[1768672910314,24.30390028,144.01,143.95,3.30276392]
[1768672910315,25.28414106,144.01,143.95,3.30276392]
[1768672910605,12.15757771,144.0,143.96,3.30276392]
[1768672910990,3.14014634,143.98,143.93,3.30276392]
[1768672911191,3.14014634,143.98,143.94,3.30276392]
[1768672911192,5.21309875,143.98,143.94,3.30276392]
[1768672912300,12.15852184,143.98,143.94,3.30276392]
[1768672912497,3.14014634,143.98,143.95,3.13252163]
[1768672912806,12.24390727,143.99,143.95,3.13252163]
[1768672913009,3.225975,143.98,143.93,3.13252163]
[1768672913183,3.225975,143.98,143.94,3.13252163]
[1768672913498,12.24390727,143.99,143.94,3.13252163]
[1768672913691,12.24390727,143.99,143.95,3.13252163]
[1768672913692,2.07295241,143.99,143.95,3.13252163]
[1768672913891,5.29892741,144.0,143.95,3.13252163]
[1768672914109,3.225975,144.0,143.95,3.13252163]
[1768672914283,5.29892741,144.0,143.95,3.13252163]
[1768672914607,3.225975,143.99,143.96,3.13252163]
[1768672914911,5.29892741,143.99,143.96,3.13252163]
[1768672915608,3.225975,143.99,143.96,3.13252163]
[1768672915908,5.29892741,143.99,143.96,3.13252163]
[1768672918184,3.225975,143.99,143.96,3.13252163]
[1768672918416,3.225975,144.02,143.97,3.13252163]
[1768672918600,5.29892741,144.01,143.97,3.13252163]
[1768672918793,12.2429444,144.01,143.97,3.13252163]
[1768672920289,2.07295241,144.0,143.97,3.13252163]
[1768672920817,10.16999199,144.01,143.97,3.13252163]
[1768672921132,2.07295241,144.0,143.97,3.13252163]
[1768672921709,5.29892741,144.0,143.97,3.13252163]
[1768672921902,5.29892741,143.99,143.96,3.13252163]
[1768672922108,5.29892741,143.99,143.95,3.13252163]
[1768672922613,9.01836149,143.98,143.95,3.13252163]
[1768672922791,12.24433649,143.98,143.95,3.13252163]
[1768672923816,10.17138408,143.98,143.95,3.13252163]
[1768672925217,12.24433649,143.98,143.95,3.13252163]
[1768672926018,10.17138408,143.98,143.95,3.13252163]
[1768672928018,12.24433649,143.98,143.95,3.13252163]
[1768672930721,12.2143365,143.98,143.95,3.13252163]
[1768672931915,10.14138409,143.98,143.95,3.13252163]
[1768672933528,3.225975,143.98,143.95,10.07935063]
[1768672933899,3.19597501,143.98,143.95,10.07935063]
[1768672936015,10.14174372,143.98,143.95,3.13252163]
[1768672939324,10.11174373,143.98,143.95,3.13252163]
[1768672945938,12.18713053,143.98,143.95,3.13252163]
[1768672946130,12.15713053,143.98,143.95,3.13252163]
[1768672946324,10.08174373,143.98,143.95,3.13252163]
[1768672959845,5.20353688,143.97,143.95,3.22654145]
[1768672960045,10.35034335,143.98,143.95,3.22654145]
[1768672960223,5.20382064,143.97,143.95,3.22654145]
[1768672960426,10.35004224,143.99,143.95,3.22654145]
[1768672960938,3.40492566,143.98,143.95,3.22654145]
[1768672961133,3.37492567,143.98,143.95,3.22654145]
[1768672961853,6.94511658,143.99,143.95,3.22654145]
[1768672962035,6.94455932,144.0,143.96,3.22654145]
[1768672963052,10.34948498,144.0,143.96,3.22654145]
[1768672965752,12.42487178,144.0,143.96,3.22654145]
[1768672966352,3.40492566,143.99,143.96,3.22654145]
[1768672966540,3.40492566,143.98,143.95,3.22654145]
[1768672968657,10.35055905,143.98,143.95,3.22654145]
[1768672970534,12.4247569,144.0,143.96,3.22654145]
[1768672971629,3.40492566,143.99,143.96,3.22654145]
[1768672972352,6.94513729,143.99,143.96,3.22654145]
[1768672972656,15.22,144.01,143.97,3.15379808]
[1768672972834,5.20508528,144.0,143.97,3.15379808]
[1768672973035,18.60368963,144.01,143.97,3.15379808]
[1768672973352,5.20508247,144.0,143.97,3.15379808]
[1768672973547,25.54812032,144.01,143.97,3.15379808]
[1768672973735,12.1488243,144.0,143.97,3.15379808]
[1768672973940,6.94461832,144.0,143.97,3.15379808]
[1768672974660,5.45907643,144.03,143.99,3.15379808]
[1768672974864,5.20318929,144.02,143.99,3.15379808]
[1768672975038,3.38368963,144.02,143.99,3.15379808]
[1768672975842,10.32725749,144.02,143.99,3.15379808]
[1768672980364,6.94304358,144.03,144.0,3.15379808]
[1768672980555,5.45907643,144.04,144.0,3.15379808]
[1768672980556,12.40173655,144.04,144.0,3.15379808]
[1768672980762,10.32634975,144.04,144.0,3.15379808]
[1768672981059,10.32634975,144.04,144.01,3.15379808]
[1768672981060,6.94266012,144.04,144.01,3.15379808]
[1768672982973,10.32634975,144.04,144.01,3.15379808]
[1768672988577,25.52590989,144.05,144.02,3.15379808]
[1768672988875,10.32590989,144.05,144.02,3.15379808]
[1768672994456,10.32590989,144.05,144.02,5.22918488]
[1768672994658,6.94165034,144.06,144.03,3.15379808]
[1768672994957,6.94165034,144.06,144.03,2.0753868]
[1768672995157,25.52446282,144.08,144.04,2.0753868]
[1768672995378,10.32446282,144.08,144.04,2.0753868]
[1768672995758,6.94077319,144.08,144.04,2.0753868]
[1768672996786,6.94077319,144.08,144.05,3.15379808]
[1768672996966,6.94077319,144.08,144.05,3.09379809]
[1768673003365,10.32797324,144.08,144.05,3.09379809]
[1768673003685,10.32797324,144.08,144.05,3.03379811]
[1768673006385,6.94077319,144.08,144.06,3.17165177]
[1768673006593,10.32797324,144.08,144.04,6.94246071]
[1768673006783,10.32797324,144.08,144.03,6.94281102]
[1768673007085,10.32797324,144.08,144.04,2.07238236]
[1768673008490,10.32797324,144.08,144.05,3.17165177]
[1768673008672,10.32797324,144.08,144.05,3.11165177]
[1768673010190,10.32797324,144.08,144.05,3.05165177]
[1768673010490,10.32797324,144.08,144.05,2.99165177]
[1768673018001,10.32797324,144.08,144.05,2.93165177]
[1768673018190,10.32797324,144.08,144.05,2.87165177]
[1768673023084,3.24704762,144.07,144.03,12.33264892]
[1768673023392,3.24704762,144.07,144.03,10.26026656]
[1768673024092,10.188179,144.07,144.03,10.26026656]
[1768673024501,6.94113138,144.07,144.03,10.26026656]
[1768673024804,3.24704762,144.06,144.03,10.26026656]
[1768673028704,3.24704762,144.06,144.03,6.94280966]
[1768673028903,3.24704762,144.06,144.04,3.3174569]
[1768673033332,3.23313571,144.05,144.0,6.94444444]
[1768673033540,5.30551807,144.04,144.01,3.1750376]
[1768673033709,5.30551807,144.05,144.01,3.1750376]
[1768673034504,3.23313571,144.05,144.02,3.1750376]
[1768673035809,10.17523449,144.05,144.02,3.1750376]
[1768673040347,12.24761685,144.05,144.02,3.1750376]
[1768673040840,15.2,144.06,144.03,3.1750376]
[1768673041134,17.35185242,144.08,144.03,3.1750376]
[1768673041135,18.43313571,144.07,144.03,3.1750376]
[1768673041343,3.23313571,144.07,144.04,3.1750376]
[1768673042716,25.37376657,144.08,144.04,3.1750376]
[1768673042933,27.44614893,144.08,144.04,3.1750376]
[1768673044351,27.44614893,144.08,144.05,3.1750376]
[1768673051048,5.30551807,144.07,144.05,3.1750376]
[1768673051549,5.30551807,144.07,144.04,3.1750376]
[1768673052146,12.24669313,144.07,144.04,3.1750376]
[1768673052516,5.30551807,144.07,144.04,10.11752926]
[1768673059250,2.07238236,144.08,144.05,3.1750376]
[1768673059448,20.60551807,144.09,144.05,3.1750376]
[1768673059762,20.60551807,144.09,144.05,3.0675776]
[1768673060123,27.54563204,144.09,144.05,6.94190316]
[1768673060330,9.11249633,144.09,144.05,6.94190316]
[1768673060526,7.04011397,144.09,144.05,6.94190316]
[1768673060827,0.1,144.09,144.05,6.94190316]
[1768673061036,0.1,144.09,144.05,9.01428552]
[1768673061347,0.1,144.09,144.05,26.36937055]
[1768673061639,0.1,144.09,144.06,3.1750376]
[1768673062032,0.1,144.09,144.07,3.45183056]
[1768673062233,0.2,144.1,144.08,3.45183056]
[1768673062421,0.2,144.1,144.08,3.39183056]
[1768673067450,0.2,144.1,144.08,3.33183056]
[1768673068530,0.2,144.1,144.08,6.9405593]
[1768673069453,0.2,144.1,144.09,3.45183056]
[1768673071651,0.2,144.1,144.07,6.9409434]
[1768673071851,0.2,144.1,144.08,3.45183056]
[1768673076761,3.67881915,144.1,144.08,3.45183056]
[1768673077061,3.67881915,144.1,144.07,3.41705997]
[1768673079353,10.61847269,144.1,144.07,3.41705997]
[1768673079860,10.61847269,144.1,144.07,10.35811532]
[1768673081256,3.47881915,144.09,144.06,10.35848301]
[1768673081464,5.55068479,144.09,144.06,10.35848301]
[1768673083965,3.47881915,144.09,144.06,10.35848301]
[1768673087063,2.27186564,144.1,144.06,27.71236333]
[1768673089153,1e-08,144.11,144.08,3.41705997]
[1768673090257,1e-08,144.11,144.09,6.94010687]
[1768673090572,2.27186564,144.12,144.09,10.35716684]
[1768673091270,1e-08,144.12,144.09,10.35716684]
[1768673092474,1e-08,144.12,144.09,27.70743403]
[1768673094781,1e-08,144.12,144.1,3.4804974]
[1768673095777,1e-08,144.12,144.1,10.41978403]
[1768673096583,1e-08,144.12,144.1,6.93928663]
[1768673096957,2.07186565,144.12,144.1,6.93928663]
[1768673102782,1e-08,144.12,144.1,6.93928663]
[1768673109991,2.07186565,144.12,144.1,6.93928663]
[1768673113575,2.07186564,144.11,144.1,6.93928663]
[1768673117403,1e-08,144.12,144.1,6.93928663]
[1768673117589,2.07186564,144.11,144.1,6.93928663]
[1768673118504,15.20000001,144.12,144.1,6.93928663]
[1768673118696,2.07186564,144.11,144.1,6.93928663]
[1768673119173,15.20000001,144.12,144.1,6.93928663]
[1768673119379,17.27186565,144.12,144.1,6.93928663]
[1768673121000,2.07186564,144.11,144.08,10.42090661]
[1768673121205,2.07186564,144.1,144.08,10.42090661]
[1768673121708,2.07186564,144.1,144.08,6.94040921]
[1768673125293,2.07229279,144.1,144.08,6.94040921]
[1768673126485,2.07229279,144.09,144.06,3.04807745]
[1768673127598,2.07229279,144.09,144.07,9.98907394]
[1768673130911,2.07229279,144.08,144.05,3.04807745]
[1768673131209,2.0422928,144.08,144.05,3.04807745]
[1768673131404,2.07229279,144.09,144.05,3.04807745]
[1768673131990,2.07229279,144.09,144.06,6.94111778]
[1768673132690,2.07229279,144.09,144.06,9.98919523]
[1768673139597,6.93963738,144.1,144.06,6.94111778]
[1768673139598,2.07229279,144.08,144.06,6.94111778]
[1768673139799,2.07229279,144.07,144.05,6.94196757]
[1768673140096,2.07229279,144.06,144.04,10.01320269]
[1768673144613,2.07229279,144.05,144.04,10.01320269]
[1768673144814,2.0422928,144.05,144.04,10.01320269]
[1768673149000,2.01229281,144.05,144.04,10.01320269]
[1768673150430,2.07229279,144.06,144.04,10.01320269]
[1768673158023,2.07229279,144.06,144.05,3.02606822]
[1768673159432,2.07229279,144.06,144.04,9.96850967]
[1768673159950,2.07229279,144.06,144.05,3.02606822]
[1768673161344,2.07229279,144.06,144.04,6.94244145]
[1768673161642,2.07229279,144.05,144.0,36.79436249]
[1768673161842,2.07229279,144.05,144.0,34.7220697]
[1768673162036,2.07229279,144.05,144.0,36.79436249]
[1768673163536,2.07229279,144.05,144.03,3.02606822]
[1768673167335,2.07229279,144.05,144.04,6.94251596]
[1768673169453,4.34214144,144.06,144.04,6.94251596]
[1768673170959,4.34214144,144.06,144.03,9.96885543]
[1768673171246,4.23788494,144.05,144.03,6.94278721]
[1768673171542,2.07229279,144.04,144.02,9.96951225]
[1768673171925,2.07229279,144.04,144.03,3.02606822]
[1768673172368,2.07229279,144.04,144.02,6.94344403]
[1768673173824,2.07229279,144.04,143.99,24.30724355]
[1768673174054,2.07229279,144.04,143.99,26.37953634]
[1768673174237,2.07229279,144.04,144.0,3.02606822]
[1768673176949,2.07229279,144.04,144.02,3.02606822]
[1768673178549,3.02234342,144.05,144.02,9.96939073]
[1768673178755,5.09463621,144.05,144.02,9.96939073]
[1768673180054,5.09463621,144.05,144.03,3.02606822]
[1768673185442,3.02234342,144.05,144.03,3.02606822]
[1768673187656,2.71371835,144.08,144.04,2.73018686]
[1768673187847,4.78721639,144.09,144.06,2.73018686]
[1768673188735,11.72746594,144.09,144.06,2.73018686]
[1768673190460,2.07349804,144.08,144.06,2.73018686]
[1768673190659,11.72698368,144.1,144.07,2.73018686]
[1768673190851,11.72698368,144.1,144.07,2.67018686]
[1768673192964,9.76712154,144.12,144.08,2.70234119]
[1768673193264,4.90149377,144.11,144.08,2.70234119]
[1768673195148,2.82799573,144.11,144.09,2.70234119]
[1768673195561,11.84061958,144.12,144.09,2.70234119]
[1768673201271,1e-08,144.12,144.1,2.70234119]
[1768673201652,1e-08,144.12,144.08,2.07349804]
[1768673201653,2.07349804,144.11,144.08,9.64282851]
[1768673201860,2.07349804,144.11,144.09,2.70234119]
[1768673202163,11.8402661,144.12,144.09,2.64234119]
[1768673202343,11.8402661,144.12,144.09,2.58234119]
[1768673202770,4.90149377,144.11,144.07,6.94096615]
[1768673203168,2.82799573,144.11,144.07,6.94096615]
[1768673203465,4.90149377,144.11,144.07,6.94096615]
[1768673204368,4.90149377,144.11,144.08,2.70234119]
[1768673205674,2.82799573,144.11,144.08,2.70234119]
[1768673206967,2.82799573,144.11,144.07,6.94096615]
[1768673207174,2.82799573,144.11,144.07,9.64330734]
[1768673208174,2.82799573,144.11,144.08,2.70234119]
[1768673208876,4.90149377,144.11,144.08,2.70234119]
[1768673209083,2.82799573,144.11,144.08,2.70234119]
[1768673210357,2.82799573,144.11,144.09,2.70234119]
[1768673210676,11.8402661,144.12,144.09,2.64234119]
[1768673212260,9.76676806,144.12,144.09,2.64234119]
[1768673212456,1e-08,144.12,144.1,2.76297657]
[1768673212770,1e-08,144.12,144.1,2.70297657]
[1768673214079,1e-08,144.12,144.1,2.64297657]
[1768673218576,1e-08,144.12,144.11,2.76297657]
[1768673219160,1e-08,144.12,144.1,9.70240351]
[1768673220588,1e-08,144.12,144.11,2.76297657]
[1768673223382,1e-08,144.12,144.11,6.9391437]
[1768673223692,1e-08,144.12,144.08,19.42435061]
[1768673223992,1e-08,144.12,144.1,2.76297657]
[1768673231779,1e-08,144.12,144.11,2.76297657]
[1768673252449,1e-08,144.12,144.09,9.55555817]
[1768673253029,1e-08,144.12,144.1,2.61500808]
[1768673260447,2.52806655,144.11,144.07,6.94071577]
[1768673260658,2.52806655,144.11,144.08,2.61500808]
[1768673261974,11.53854676,144.11,144.08,2.61500808]
[1768673262350,9.46768712,144.11,144.08,2.61500808]
[1768673266389,2.52806655,144.1,144.07,2.61500808]
[1768673266573,2.49806656,144.1,144.07,2.61500808]
[1768673268073,9.01048021,144.11,144.07,2.61500808]
[1768673268392,9.01048021,144.11,144.08,2.61500808]
[1768673268599,11.53854676,144.11,144.08,2.61500808]
[1768673268894,9.46768712,144.11,144.08,2.61500808]
[1768673270399,17.72806656,144.12,144.09,2.61500808]
[1768673270863,15.20000001,144.12,144.09,2.61500808]
[1768673272493,1e-08,144.12,144.1,2.4740293]
[1768673274399,4.53883675,144.12,144.09,2.4740293]
[1768673275679,4.53883675,144.12,144.08,9.4145771]
[1768673275680,2.4679771,144.11,144.08,9.4145771]
[1768673277705,2.4679771,144.11,144.08,6.9405478]
[1768673277895,2.4679771,144.11,144.09,2.4740293]
[1768673282110,9.00967278,144.12,144.09,2.4740293]
[1768673282409,1e-08,144.12,144.1,2.4740293]
[1768673283901,1e-08,144.12,144.11,2.4740293]
[1768673290420,1e-08,144.12,144.11,9.413173]
[1768673291118,1e-08,144.12,144.11,6.9391437]
[1768673291621,0.2,144.15,144.12,2.4740293]
[1768673293296,0.2,144.15,144.13,9.4122101]
[1768673297003,0.2,144.15,144.14,2.4740293]
[1768673298933,0.2,144.16,144.14,2.4740293]
[1768673299136,0.2,144.16,144.14,9.41135314]
[1768673299716,0.2,144.16,144.15,2.4740293]
[1768673304842,2.4947152,144.16,144.13,9.34856995]
[1768673305230,2.4947152,144.16,144.13,6.9381808]
[1768673305441,2.4947152,144.16,144.14,2.41038915]
[1768673321166,0.2,144.16,144.14,2.41038915]
[1768673321372,0.2,144.16,144.14,9.34807747]
[1768673326475,2.47302612,144.16,144.13,9.26273881]
[1768673326977,2.47302612,144.16,144.13,6.9381808]
[1768673327275,2.47302612,144.16,144.13,9.26273881]
[1768673327576,7.13631779,144.17,144.14,2.32455801]
[1768673327765,2.37302612,144.19,144.15,2.32455801]
[1768673327968,4.34294367,144.18,144.15,2.32455801]
[1768673328450,2.27302612,144.18,144.15,2.32455801]
[1768673328652,4.34294367,144.18,144.15,2.32455801]
[1768673329555,11.27871839,144.18,144.15,2.32455801]
[1768673330958,2.27302612,144.17,144.15,2.32455801]
[1768673333387,4.34294367,144.17,144.15,2.32455801]
[1768673333803,2.42880606,144.18,144.1,103.5]
[1768673333969,4.49872361,144.13,144.1,6.93947404]
[1768673334372,2.42880606,144.13,144.09,9.17152838]
[1768673335369,2.42880606,144.13,144.1,6.93961515]
[1768673335997,2.42880606,144.15,144.11,2.2315689]
[1768673337087,4.49872361,144.15,144.12,2.2315689]
[1768673340303,2.42880606,144.14,144.09,17.34939708]
[1768673340489,2.42880606,144.13,144.1,9.17112927]
[1768673340812,2.39880607,144.13,144.1,9.17112927]
[1768673345904,2.36880608,144.13,144.1,9.17112927]
[1768673348502,2.42880606,144.14,144.11,2.2315689]
[1768673349015,4.49872361,144.15,144.11,2.2315689]
[1768673350814,2.42880606,144.15,144.12,6.93866222]
[1768673351111,2.42880606,144.16,144.13,2.2315689]
[1768673352219,2.42880606,144.16,144.13,9.16945098]
[1768673353740,2.42880606,144.16,144.12,9.17023112]
[1768673354237,2.42880606,144.15,144.12,9.17023112]
[1768673365808,2.06991755,144.15,144.11,6.93893661]
[1768673366021,2.16066585,144.14,144.11,6.93893661]
[1768673366221,2.16066585,144.14,144.11,9.20954642]
[1768673366421,2.16066585,144.16,144.13,2.27060981]
[1768673367241,2.16066585,144.16,144.12,9.20925036]
[1768673370452,2.16066585,144.16,144.13,9.20862647]
[1768673372659,2.16066585,144.16,144.14,2.27060981]
[1768673372842,2.16066585,144.17,144.14,2.27060981]
[1768673374260,2.16066585,144.17,144.14,9.20826824]
[1768673386481,4.2307317,144.17,144.14,9.20826824]